{"text_format":"3","workbook":"xlsx","n_sheets":4,"sheets":["Început","PARAMETRI PROIECT","DETALII PROIECT","TOTALURI PROIECT"],"not_rendered":{"charts":2,"defined_names":3,"pivot_tables":1},"read":"whole","date_system":"1900"}

{"sheet":"Început","index":0,"n_rows":8,"n_cols":2,"rows_kept":8}
[null,"DESPRE ACEST ȘABLON"]
[]
[null,"Utilizați acest registru de lucru pentru a urmări Parametri proiect, Detalii proiect și Totaluri proiect în timpul planificarea proiectelor pentru firme de avocatură."]
[null,"Completați Numele firmei în foaia de lucru Parametri proiect și acesta se va actualiza automat în celelalte foi de lucru."]
[null,"Introduceți informațiile în foaia de lucru Parametri proiect, pentru a actualiza diagramele coloană, și în foaia de lucru Detalii proiect. Raportul PivotTable din foaia de lucru Totaluri proiect se actualizează automat."]
[null,"Notă:  "]
[null,"Găsiți instrucțiuni suplimentare în coloana A a fiecărei foi de lucru. Acest text a fost ascuns intenționat. Pentru a elimina textul, selectați coloana A, apoi DELETE. Pentru a reafișa textul, selectați coloana A, apoi schimbați culoarea fontului."]
[null,"Pentru a afla mai multe despre tabelele din foile de lucru, apăsați SHIFT, apoi F10 într-un tabel, selectați opțiunea TABEL, apoi TEXT ALTERNATIV. Pentru rapoartele PivotTable din foaia de lucru Totaluri proiect, apăsați SHIFT, apoi F10 într-un tabel, selectați OPȚIUNI PIVOTTABLE, apoi fila TEXT ALTERNATIV."]

{"sheet":"PARAMETRI PROIECT","index":1,"n_rows":19,"n_cols":9,"rows_kept":19}
["Creați Parametri proiect în această foaie de lucru. Introduceți numele firmei în celula din dreapta. În celulele din această coloană se află instrucțiuni utile.","Numele firmei"]
["Titlul acestei foi de lucru se află în celula de la dreapta.","Planificarea proiectelor pentru firme de avocatură"]
["Mesajul privind confidențialitatea se află în celula din dreapta.",{"$f":"B1&\" confidențial\"","v":"Numele firmei confidențial"}]
["Sfatul se află în celula din dreapta.","Celulele umbrite sunt calculate pentru dvs. Nu trebuie să introduceți nimic în ele."]
["Introduceți detaliile în tabelul Parametri, începând cu celula din dreapta. Următoarele instrucțiuni se află în celula A12.","TIP PROIECT","PARTENER GENERAL","AVOCAT COMERCIAL","AVOCAT PLEDANT APĂRARE","AVOCAT PROPRIETATE INTELECTUALĂ","AVOCAT FALIMENTE","PERSONAL ADMINISTRATIV","TOTAL"]
[null,"Încorporare firme",{"v":0.1,"d":"10%"},{"v":0.4,"d":"40%"},{"v":0,"d":"0%"},{"v":0,"d":"0%"},{"v":0,"d":"0%"},{"v":0.5,"d":"50%"},{"$f":"SUM(Parametri[[#This Row],[PARTENER GENERAL]:[PERSONAL ADMINISTRATIV]])","v":{"v":1,"d":"100%"}}]
[null,"Achiziții firme",{"v":0.1,"d":"10%"},{"v":0.4,"d":"40%"},{"v":0,"d":"0%"},{"v":0.1,"d":"10%"},{"v":0,"d":"0%"},{"v":0.4,"d":"40%"},{"$f":"SUM(Parametri[[#This Row],[PARTENER GENERAL]:[PERSONAL ADMINISTRATIV]])","v":{"v":1,"d":"100%"}}]
[null,"Apărare responsabilitate pentru produs",{"v":0.2,"d":"20%"},{"v":0,"d":"0%"},{"v":0.5,"d":"50%"},{"v":0,"d":"0%"},{"v":0,"d":"0%"},{"v":0.3,"d":"30%"},{"$f":"SUM(Parametri[[#This Row],[PARTENER GENERAL]:[PERSONAL ADMINISTRATIV]])","v":{"v":1,"d":"100%"}}]
[null,"Cereri de brevete",{"v":0.1,"d":"10%"},{"v":0,"d":"0%"},{"v":0,"d":"0%"},{"v":0.6,"d":"60%"},{"v":0,"d":"0%"},{"v":0.3,"d":"30%"},{"$f":"SUM(Parametri[[#This Row],[PARTENER GENERAL]:[PERSONAL ADMINISTRATIV]])","v":{"v":1,"d":"100%"}}]
[null,"Procese intentate de angajați",{"v":0.2,"d":"20%"},{"v":0.1,"d":"10%"},{"v":0.4,"d":"40%"},{"v":0,"d":"0%"},{"v":0,"d":"0%"},{"v":0.3,"d":"30%"},{"$f":"SUM(Parametri[[#This Row],[PARTENER GENERAL]:[PERSONAL ADMINISTRATIV]])","v":{"v":1,"d":"100%"}}]
[null,"Faliment",{"v":0.1,"d":"10%"},{"v":0.2,"d":"20%"},{"v":0,"d":"0%"},{"v":0,"d":"0%"},{"v":0.4,"d":"40%"},{"v":0.3,"d":"30%"},{"$f":"SUM(Parametri[[#This Row],[PARTENER GENERAL]:[PERSONAL ADMINISTRATIV]])","v":{"v":1,"d":"100%"}}]
["Introduceți Tarife ponderate în celulele din dreapta, de la C12 la H12. Următoarele instrucțiuni se află în celula A14.","Tarife ponderate",{"v":350,"d":"350 lei"},{"v":250,"d":"250 lei"},{"v":300,"d":"300 lei"},{"v":275,"d":"275 lei"},{"v":225,"d":"225 lei"},{"v":125,"d":"125 lei"}]
[]
["Diagrama coloană care afișează comparația între costul planificat și costul real se află în celula din dreapta și diagrama coloană care afișează comparația între orele planificate și orele reale se află în celula F14."]
[null,null,"PARTENER GENERAL","AFACERI","AVOCAT PLEDANT APĂRARE","PROP. INTELECTUALĂ","FALIMENT","PERSONAL ADMINISTRATIV"]
[null,"COST PLANIFICAT",{"$f":"SUBTOTAL(109,Detalii[PARTENER GENERAL])","v":{"v":78750,"d":"78,750.00 lei"}},{"$f":"SUBTOTAL(109,Detalii[AVOCAT COMERCIAL])","v":{"v":66250,"d":"66,250.00 lei"}},{"$f":"SUBTOTAL(109,Detalii[AVOCAT PLEDANT APĂRARE])","v":{"v":105000,"d":"105,000.00 lei"}},{"$f":"SUBTOTAL(109,Detalii[AVOCAT PROPRIETATE INTELECTUALĂ])","v":{"v":35750,"d":"35,750.00 lei"}},{"$f":"SUBTOTAL(109,Detalii[AVOCAT FALIMENTE])","v":{"v":0,"d":"0.00 lei"}},{"$f":"SUBTOTAL(109,Detalii[PERSONAL ADMINISTRATIV])","v":{"v":66250,"d":"66,250.00 lei"}}]
[null,"COST REAL",{"$f":"SUBTOTAL(109,Detalii[PARTENER GENERAL 2])","v":{"v":79275,"d":"79,275.00 lei"}},{"$f":"SUBTOTAL(109,Detalii[AVOCAT COMERCIAL 2])","v":{"v":67375,"d":"67,375.00 lei"}},{"$f":"SUBTOTAL(109,Detalii[AVOCAT PLEDANT APĂRARE 2])","v":{"v":105600,"d":"105,600.00 lei"}},{"$f":"SUBTOTAL(109,Detalii[AVOCAT PROPRIETATE INTELECTUALĂ 2])","v":{"v":34650,"d":"34,650.00 lei"}},{"$f":"SUBTOTAL(109,Detalii[AVOCAT FALIMENTE 2])","v":{"v":0,"d":"0.00 lei"}},{"$f":"SUBTOTAL(109,Detalii[PERSONAL ADMINISTRATIV 2])","v":{"v":67000,"d":"67,000.00 lei"}}]
[null,"ORE PLANIFICATE",{"$f":"C16/$C$12","v":{"v":225,"d":"225.00"}},{"$f":"D16/$C$12","v":{"v":189.28571428571428,"d":"189.29"}},{"v":300,"d":"300.00"},{"v":102.14285714285714,"d":"102.14"},{"v":0,"d":"0.00"},{"v":189.28571428571428,"d":"189.29"}]
[null,"ORE REALE",{"$f":"C17/$C$12","v":{"v":226.5,"d":"226.50"}},{"$f":"D17/$C$12","v":{"v":192.5,"d":"192.50"}},{"$f":"E17/$C$12","v":{"v":301.7142857142857,"d":"301.71"}},{"$f":"F17/$C$12","v":{"v":99,"d":"99.00"}},{"$f":"G17/$C$12","v":{"v":0,"d":"0.00"}},{"$f":"H17/$C$12","v":{"v":191.42857142857142,"d":"191.43"}}]

{"sheet":"DETALII PROIECT","index":2,"n_rows":10,"n_cols":25,"rows_kept":10,"merged":[[1,24,8,28]]}
["Creați Detalii proiect în această foaie de lucru. Numele firmei se actualizează automat în celula din dreapta. În celulele din această coloană se află instrucțiuni utile. Apăsați săgeata în jos pentru a începe.",{"$f":"'PARAMETRI PROIECT'!B1","v":"Numele firmei"}]
["Titlul acestei foi de lucru se află în celula de la dreapta și sfaturile informative în celula Y2.",{"$f":"'PARAMETRI PROIECT'!B2","v":"Planificarea proiectelor pentru firme de avocatură"},{"$nulls":22},"INFORMAȚII:\nPentru a adăuga un rând, selectați celula aflată în colțul din dreapta jos al tabelului (nu pe rândul pentru totaluri) și apăsați pe Tab sau apăsați SHIFT și apoi F10 în tabel, în locul unde doriți să fie inserat rândul, apoi selectați Inserare | Rânduri tabel deasupra/Rând tabel în jos.\nAsigurați-vă că toate rândurile neutilizate sunt șterse, deoarece raportul PivotTable TOTALURI PROIECT va utiliza toate celulele din tabel și, în caz contrar, va returna rezultate greșite."]
["Mesajul privind confidențialitatea se află în celula din dreapta.",{"$f":"'PARAMETRI PROIECT'!B3","v":"Numele firmei confidențial"}]
["Introduceți informații în tabelul Detalii, începând cu celula din dreapta. Tip proiect din tabelul Detalii de la dreapta sunt actualizate automat din tabelul Parametri din foaia de lucru Parametri proiect.","NUMELE PROIECTULUI","TIP PROIECT","DATA DE ÎNCEPUT ESTIMATĂ","DATA DE SFÂRȘIT ESTIMATĂ","DATA DE ÎNCEPUT EFECTIVĂ","DATA DE SFÂRȘIT EFECTIVĂ","LUCRU ESTIMAT","LUCRU EFECTIV","DURATA ESTIMATĂ","DURATA EFECTIVĂ","PARTENER GENERAL","AVOCAT COMERCIAL","AVOCAT PLEDANT APĂRARE","AVOCAT PROPRIETATE INTELECTUALĂ","AVOCAT FALIMENTE","PERSONAL ADMINISTRATIV","PARTENER GENERAL 2","AVOCAT COMERCIAL 2","AVOCAT PLEDANT APĂRARE 2","AVOCAT PROPRIETATE INTELECTUALĂ 2","AVOCAT FALIMENTE 2","PERSONAL ADMINISTRATIV 2"]
[null,"Proiectul 1","Încorporare firme",{"$f":"TODAY()","v":"2019-02-18"},{"$f":"TODAY()+60","v":"2019-04-19"},{"$f":"TODAY()+10","v":"2019-02-28"},{"$f":"TODAY()+65","v":"2019-04-24"},200,220,{"$f":"DAYS360(Detalii[[#This Row],[DATA DE ÎNCEPUT ESTIMATĂ]],Detalii[[#This Row],[DATA DE SFÂRȘIT ESTIMATĂ]],FALSE)","v":61},{"$f":"DAYS360(Detalii[[#This Row],[DATA DE ÎNCEPUT EFECTIVĂ]],Detalii[[#This Row],[DATA DE SFÂRȘIT EFECTIVĂ]],FALSE)","v":54},{"$f":"INDEX(Parametri[],MATCH(Detalii[[#This Row],[TIP PROIECT]],Parametri[TIP PROIECT],0),MATCH(Detalii[[#Headers],[PARTENER GENERAL]],Parametri[#Headers],0))*INDEX('PARAMETRI PROIECT'!$B$12:$H$12,1,MATCH(Detalii[[#Headers],[PARTENER GENERAL]],Parametri[#Headers],0))*Detalii[[#This Row],[LUCRU ESTIMAT]]","v":{"v":7000,"d":"7,000 lei"}},{"$f":"INDEX(Parametri[],MATCH(Detalii[[#This Row],[TIP PROIECT]],Parametri[TIP PROIECT],0),MATCH(Detalii[[#Headers],[AVOCAT COMERCIAL]],Parametri[#Headers],0))*INDEX('PARAMETRI PROIECT'!$B$12:$H$12,1,MATCH(Detalii[[#Headers],[AVOCAT COMERCIAL]],Parametri[#Headers],0))*Detalii[[#This Row],[LUCRU ESTIMAT]]","v":{"v":20000,"d":"20,000 lei"}},{"$f":"INDEX(Parametri[],MATCH(Detalii[[#This Row],[TIP PROIECT]],Parametri[TIP PROIECT],0),MATCH(Detalii[[#Headers],[AVOCAT PLEDANT APĂRARE]],Parametri[#Headers],0))*INDEX('PARAMETRI PROIECT'!$B$12:$H$12,1,MATCH(Detalii[[#Headers],[AVOCAT PLEDANT APĂRARE]],Parametri[#Headers],0))*Detalii[[#This Row],[LUCRU ESTIMAT]]","v":{"v":0,"d":"0 lei"}},{"$f":"INDEX(Parametri[],MATCH(Detalii[[#This Row],[TIP PROIECT]],Parametri[TIP PROIECT],0),MATCH(Detalii[[#Headers],[AVOCAT PROPRIETATE INTELECTUALĂ]],Parametri[#Headers],0))*INDEX('PARAMETRI PROIECT'!$B$12:$H$12,1,MATCH(Detalii[[#Headers],[AVOCAT PROPRIETATE INTELECTUALĂ]],Parametri[#Headers],0))*Detalii[[#This Row],[LUCRU ESTIMAT]]","v":{"v":0,"d":"0 lei"}},{"$f":"INDEX(Parametri[],MATCH(Detalii[[#This Row],[TIP PROIECT]],Parametri[TIP PROIECT],0),MATCH(Detalii[[#Headers],[AVOCAT FALIMENTE]],Parametri[#Headers],0))*INDEX('PARAMETRI PROIECT'!$B$12:$H$12,1,MATCH(Detalii[[#Headers],[AVOCAT FALIMENTE]],Parametri[#Headers],0))*Detalii[[#This Row],[LUCRU ESTIMAT]]","v":{"v":0,"d":"0 lei"}},{"$f":"INDEX(Parametri[],MATCH(Detalii[[#This Row],[TIP PROIECT]],Parametri[TIP PROIECT],0),MATCH(Detalii[[#Headers],[PERSONAL ADMINISTRATIV]],Parametri[#Headers],0))*INDEX('PARAMETRI PROIECT'!$B$12:$H$12,1,MATCH(Detalii[[#Headers],[PERSONAL ADMINISTRATIV]],Parametri[#Headers],0))*Detalii[[#This Row],[LUCRU ESTIMAT]]","v":{"v":12500,"d":"12,500 lei"}},{"$f":"INDEX(Parametri[],MATCH(Detalii[[#This Row],[TIP PROIECT]],Parametri[TIP PROIECT],0),MATCH(Detalii[[#Headers],[PARTENER GENERAL]],Parametri[#Headers],0))*INDEX('PARAMETRI PROIECT'!$B$12:$H$12,1,MATCH(Detalii[[#Headers],[PARTENER GENERAL]],Parametri[#Headers],0))*Detalii[[#This Row],[LUCRU EFECTIV]]","v":{"v":7700,"d":"7,700 lei"}},{"$f":"INDEX(Parametri[],MATCH(Detalii[[#This Row],[TIP PROIECT]],Parametri[TIP PROIECT],0),MATCH(Detalii[[#Headers],[AVOCAT COMERCIAL]],Parametri[#Headers],0))*INDEX('PARAMETRI PROIECT'!$B$12:$H$12,1,MATCH(Detalii[[#Headers],[AVOCAT COMERCIAL]],Parametri[#Headers],0))*Detalii[[#This Row],[LUCRU EFECTIV]]","v":{"v":22000,"d":"22,000 lei"}},{"$f":"INDEX(Parametri[],MATCH(Detalii[[#This Row],[TIP PROIECT]],Parametri[TIP PROIECT],0),MATCH(Detalii[[#Headers],[AVOCAT PLEDANT APĂRARE]],Parametri[#Headers],0))*INDEX('PARAMETRI PROIECT'!$B$12:$H$12,1,MATCH(Detalii[[#Headers],[AVOCAT PLEDANT APĂRARE]],Parametri[#Headers],0))*Detalii[[#This Row],[LUCRU EFECTIV]]","v":{"v":0,"d":"0 lei"}},{"$f":"INDEX(Parametri[],MATCH(Detalii[[#This Row],[TIP PROIECT]],Parametri[TIP PROIECT],0),MATCH(Detalii[[#Headers],[AVOCAT PROPRIETATE INTELECTUALĂ]],Parametri[#Headers],0))*INDEX('PARAMETRI PROIECT'!$B$12:$H$12,1,MATCH(Detalii[[#Headers],[AVOCAT PROPRIETATE INTELECTUALĂ]],Parametri[#Headers],0))*Detalii[[#This Row],[LUCRU EFECTIV]]","v":{"v":0,"d":"0 lei"}},{"$f":"INDEX(Parametri[],MATCH(Detalii[[#This Row],[TIP PROIECT]],Parametri[TIP PROIECT],0),MATCH(Detalii[[#Headers],[AVOCAT FALIMENTE]],Parametri[#Headers],0))*INDEX('PARAMETRI PROIECT'!$B$12:$H$12,1,MATCH(Detalii[[#Headers],[AVOCAT FALIMENTE]],Parametri[#Headers],0))*Detalii[[#This Row],[LUCRU EFECTIV]]","v":{"v":0,"d":"0 lei"}},{"$f":"INDEX(Parametri[],MATCH(Detalii[[#This Row],[TIP PROIECT]],Parametri[TIP PROIECT],0),MATCH(Detalii[[#Headers],[PERSONAL ADMINISTRATIV]],Parametri[#Headers],0))*INDEX('PARAMETRI PROIECT'!$B$12:$H$12,1,MATCH(Detalii[[#Headers],[PERSONAL ADMINISTRATIV]],Parametri[#Headers],0))*Detalii[[#This Row],[LUCRU EFECTIV]]","v":{"v":13750,"d":"13,750 lei"}}]
[null,"Proiectul 2","Achiziții firme",{"$f":"TODAY()+30","v":"2019-03-20"},{"$f":"TODAY()+100","v":"2019-05-29"},{"$f":"TODAY()+40","v":"2019-03-30"},{"$f":"TODAY()+110","v":"2019-06-08"},400,390,{"$f":"DAYS360(Detalii[[#This Row],[DATA DE ÎNCEPUT ESTIMATĂ]],Detalii[[#This Row],[DATA DE SFÂRȘIT ESTIMATĂ]],FALSE)","v":69},{"$f":"DAYS360(Detalii[[#This Row],[DATA DE ÎNCEPUT EFECTIVĂ]],Detalii[[#This Row],[DATA DE SFÂRȘIT EFECTIVĂ]],FALSE)","v":68},{"$f":"INDEX(Parametri[],MATCH(Detalii[[#This Row],[TIP PROIECT]],Parametri[TIP PROIECT],0),MATCH(Detalii[[#Headers],[PARTENER GENERAL]],Parametri[#Headers],0))*INDEX('PARAMETRI PROIECT'!$B$12:$H$12,1,MATCH(Detalii[[#Headers],[PARTENER GENERAL]],Parametri[#Headers],0))*Detalii[[#This Row],[LUCRU ESTIMAT]]","v":{"v":14000,"d":"14,000 lei"}},{"$f":"INDEX(Parametri[],MATCH(Detalii[[#This Row],[TIP PROIECT]],Parametri[TIP PROIECT],0),MATCH(Detalii[[#Headers],[AVOCAT COMERCIAL]],Parametri[#Headers],0))*INDEX('PARAMETRI PROIECT'!$B$12:$H$12,1,MATCH(Detalii[[#Headers],[AVOCAT COMERCIAL]],Parametri[#Headers],0))*Detalii[[#This Row],[LUCRU ESTIMAT]]","v":{"v":40000,"d":"40,000 lei"}},{"$f":"INDEX(Parametri[],MATCH(Detalii[[#This Row],[TIP PROIECT]],Parametri[TIP PROIECT],0),MATCH(Detalii[[#Headers],[AVOCAT PLEDANT APĂRARE]],Parametri[#Headers],0))*INDEX('PARAMETRI PROIECT'!$B$12:$H$12,1,MATCH(Detalii[[#Headers],[AVOCAT PLEDANT APĂRARE]],Parametri[#Headers],0))*Detalii[[#This Row],[LUCRU ESTIMAT]]","v":{"v":0,"d":"0 lei"}},{"$f":"INDEX(Parametri[],MATCH(Detalii[[#This Row],[TIP PROIECT]],Parametri[TIP PROIECT],0),MATCH(Detalii[[#Headers],[AVOCAT PROPRIETATE INTELECTUALĂ]],Parametri[#Headers],0))*INDEX('PARAMETRI PROIECT'!$B$12:$H$12,1,MATCH(Detalii[[#Headers],[AVOCAT PROPRIETATE INTELECTUALĂ]],Parametri[#Headers],0))*Detalii[[#This Row],[LUCRU ESTIMAT]]","v":{"v":11000,"d":"11,000 lei"}},{"$f":"INDEX(Parametri[],MATCH(Detalii[[#This Row],[TIP PROIECT]],Parametri[TIP PROIECT],0),MATCH(Detalii[[#Headers],[AVOCAT FALIMENTE]],Parametri[#Headers],0))*INDEX('PARAMETRI PROIECT'!$B$12:$H$12,1,MATCH(Detalii[[#Headers],[AVOCAT FALIMENTE]],Parametri[#Headers],0))*Detalii[[#This Row],[LUCRU ESTIMAT]]","v":{"v":0,"d":"0 lei"}},{"$f":"INDEX(Parametri[],MATCH(Detalii[[#This Row],[TIP PROIECT]],Parametri[TIP PROIECT],0),MATCH(Detalii[[#Headers],[PERSONAL ADMINISTRATIV]],Parametri[#Headers],0))*INDEX('PARAMETRI PROIECT'!$B$12:$H$12,1,MATCH(Detalii[[#Headers],[PERSONAL ADMINISTRATIV]],Parametri[#Headers],0))*Detalii[[#This Row],[LUCRU ESTIMAT]]","v":{"v":20000,"d":"20,000 lei"}},{"$f":"INDEX(Parametri[],MATCH(Detalii[[#This Row],[TIP PROIECT]],Parametri[TIP PROIECT],0),MATCH(Detalii[[#Headers],[PARTENER GENERAL]],Parametri[#Headers],0))*INDEX('PARAMETRI PROIECT'!$B$12:$H$12,1,MATCH(Detalii[[#Headers],[PARTENER GENERAL]],Parametri[#Headers],0))*Detalii[[#This Row],[LUCRU EFECTIV]]","v":{"v":13650,"d":"13,650 lei"}},{"$f":"INDEX(Parametri[],MATCH(Detalii[[#This Row],[TIP PROIECT]],Parametri[TIP PROIECT],0),MATCH(Detalii[[#Headers],[AVOCAT COMERCIAL]],Parametri[#Headers],0))*INDEX('PARAMETRI PROIECT'!$B$12:$H$12,1,MATCH(Detalii[[#Headers],[AVOCAT COMERCIAL]],Parametri[#Headers],0))*Detalii[[#This Row],[LUCRU EFECTIV]]","v":{"v":39000,"d":"39,000 lei"}},{"$f":"INDEX(Parametri[],MATCH(Detalii[[#This Row],[TIP PROIECT]],Parametri[TIP PROIECT],0),MATCH(Detalii[[#Headers],[AVOCAT PLEDANT APĂRARE]],Parametri[#Headers],0))*INDEX('PARAMETRI PROIECT'!$B$12:$H$12,1,MATCH(Detalii[[#Headers],[AVOCAT PLEDANT APĂRARE]],Parametri[#Headers],0))*Detalii[[#This Row],[LUCRU EFECTIV]]","v":{"v":0,"d":"0 lei"}},{"$f":"INDEX(Parametri[],MATCH(Detalii[[#This Row],[TIP PROIECT]],Parametri[TIP PROIECT],0),MATCH(Detalii[[#Headers],[AVOCAT PROPRIETATE INTELECTUALĂ]],Parametri[#Headers],0))*INDEX('PARAMETRI PROIECT'!$B$12:$H$12,1,MATCH(Detalii[[#Headers],[AVOCAT PROPRIETATE INTELECTUALĂ]],Parametri[#Headers],0))*Detalii[[#This Row],[LUCRU EFECTIV]]","v":{"v":10725,"d":"10,725 lei"}},{"$f":"INDEX(Parametri[],MATCH(Detalii[[#This Row],[TIP PROIECT]],Parametri[TIP PROIECT],0),MATCH(Detalii[[#Headers],[AVOCAT FALIMENTE]],Parametri[#Headers],0))*INDEX('PARAMETRI PROIECT'!$B$12:$H$12,1,MATCH(Detalii[[#Headers],[AVOCAT FALIMENTE]],Parametri[#Headers],0))*Detalii[[#This Row],[LUCRU EFECTIV]]","v":{"v":0,"d":"0 lei"}},{"$f":"INDEX(Parametri[],MATCH(Detalii[[#This Row],[TIP PROIECT]],Parametri[TIP PROIECT],0),MATCH(Detalii[[#Headers],[PERSONAL ADMINISTRATIV]],Parametri[#Headers],0))*INDEX('PARAMETRI PROIECT'!$B$12:$H$12,1,MATCH(Detalii[[#Headers],[PERSONAL ADMINISTRATIV]],Parametri[#Headers],0))*Detalii[[#This Row],[LUCRU EFECTIV]]","v":{"v":19500,"d":"19,500 lei"}}]
[null,"Proiectul 3","Apărare responsabilitate pentru produs",{"$f":"TODAY()+150","v":"2019-07-18"},{"$f":"TODAY()+150","v":"2019-07-18"},{"$f":"TODAY()+150","v":"2019-07-18"},{"$f":"TODAY()+170","v":"2019-08-07"},500,500,{"$f":"DAYS360(Detalii[[#This Row],[DATA DE ÎNCEPUT ESTIMATĂ]],Detalii[[#This Row],[DATA DE SFÂRȘIT ESTIMATĂ]],FALSE)","v":0},{"$f":"DAYS360(Detalii[[#This Row],[DATA DE ÎNCEPUT EFECTIVĂ]],Detalii[[#This Row],[DATA DE SFÂRȘIT EFECTIVĂ]],FALSE)","v":19},{"$f":"INDEX(Parametri[],MATCH(Detalii[[#This Row],[TIP PROIECT]],Parametri[TIP PROIECT],0),MATCH(Detalii[[#Headers],[PARTENER GENERAL]],Parametri[#Headers],0))*INDEX('PARAMETRI PROIECT'!$B$12:$H$12,1,MATCH(Detalii[[#Headers],[PARTENER GENERAL]],Parametri[#Headers],0))*Detalii[[#This Row],[LUCRU ESTIMAT]]","v":{"v":35000,"d":"35,000 lei"}},{"$f":"INDEX(Parametri[],MATCH(Detalii[[#This Row],[TIP PROIECT]],Parametri[TIP PROIECT],0),MATCH(Detalii[[#Headers],[AVOCAT COMERCIAL]],Parametri[#Headers],0))*INDEX('PARAMETRI PROIECT'!$B$12:$H$12,1,MATCH(Detalii[[#Headers],[AVOCAT COMERCIAL]],Parametri[#Headers],0))*Detalii[[#This Row],[LUCRU ESTIMAT]]","v":{"v":0,"d":"0 lei"}},{"$f":"INDEX(Parametri[],MATCH(Detalii[[#This Row],[TIP PROIECT]],Parametri[TIP PROIECT],0),MATCH(Detalii[[#Headers],[AVOCAT PLEDANT APĂRARE]],Parametri[#Headers],0))*INDEX('PARAMETRI PROIECT'!$B$12:$H$12,1,MATCH(Detalii[[#Headers],[AVOCAT PLEDANT APĂRARE]],Parametri[#Headers],0))*Detalii[[#This Row],[LUCRU ESTIMAT]]","v":{"v":75000,"d":"75,000 lei"}},{"$f":"INDEX(Parametri[],MATCH(Detalii[[#This Row],[TIP PROIECT]],Parametri[TIP PROIECT],0),MATCH(Detalii[[#Headers],[AVOCAT PROPRIETATE INTELECTUALĂ]],Parametri[#Headers],0))*INDEX('PARAMETRI PROIECT'!$B$12:$H$12,1,MATCH(Detalii[[#Headers],[AVOCAT PROPRIETATE INTELECTUALĂ]],Parametri[#Headers],0))*Detalii[[#This Row],[LUCRU ESTIMAT]]","v":{"v":0,"d":"0 lei"}},{"$f":"INDEX(Parametri[],MATCH(Detalii[[#This Row],[TIP PROIECT]],Parametri[TIP PROIECT],0),MATCH(Detalii[[#Headers],[AVOCAT FALIMENTE]],Parametri[#Headers],0))*INDEX('PARAMETRI PROIECT'!$B$12:$H$12,1,MATCH(Detalii[[#Headers],[AVOCAT FALIMENTE]],Parametri[#Headers],0))*Detalii[[#This Row],[LUCRU ESTIMAT]]","v":{"v":0,"d":"0 lei"}},{"$f":"INDEX(Parametri[],MATCH(Detalii[[#This Row],[TIP PROIECT]],Parametri[TIP PROIECT],0),MATCH(Detalii[[#Headers],[PERSONAL ADMINISTRATIV]],Parametri[#Headers],0))*INDEX('PARAMETRI PROIECT'!$B$12:$H$12,1,MATCH(Detalii[[#Headers],[PERSONAL ADMINISTRATIV]],Parametri[#Headers],0))*Detalii[[#This Row],[LUCRU ESTIMAT]]","v":{"v":18750,"d":"18,750 lei"}},{"$f":"INDEX(Parametri[],MATCH(Detalii[[#This Row],[TIP PROIECT]],Parametri[TIP PROIECT],0),MATCH(Detalii[[#Headers],[PARTENER GENERAL]],Parametri[#Headers],0))*INDEX('PARAMETRI PROIECT'!$B$12:$H$12,1,MATCH(Detalii[[#Headers],[PARTENER GENERAL]],Parametri[#Headers],0))*Detalii[[#This Row],[LUCRU EFECTIV]]","v":{"v":35000,"d":"35,000 lei"}},{"$f":"INDEX(Parametri[],MATCH(Detalii[[#This Row],[TIP PROIECT]],Parametri[TIP PROIECT],0),MATCH(Detalii[[#Headers],[AVOCAT COMERCIAL]],Parametri[#Headers],0))*INDEX('PARAMETRI PROIECT'!$B$12:$H$12,1,MATCH(Detalii[[#Headers],[AVOCAT COMERCIAL]],Parametri[#Headers],0))*Detalii[[#This Row],[LUCRU EFECTIV]]","v":{"v":0,"d":"0 lei"}},{"$f":"INDEX(Parametri[],MATCH(Detalii[[#This Row],[TIP PROIECT]],Parametri[TIP PROIECT],0),MATCH(Detalii[[#Headers],[AVOCAT PLEDANT APĂRARE]],Parametri[#Headers],0))*INDEX('PARAMETRI PROIECT'!$B$12:$H$12,1,MATCH(Detalii[[#Headers],[AVOCAT PLEDANT APĂRARE]],Parametri[#Headers],0))*Detalii[[#This Row],[LUCRU EFECTIV]]","v":{"v":75000,"d":"75,000 lei"}},{"$f":"INDEX(Parametri[],MATCH(Detalii[[#This Row],[TIP PROIECT]],Parametri[TIP PROIECT],0),MATCH(Detalii[[#Headers],[AVOCAT PROPRIETATE INTELECTUALĂ]],Parametri[#Headers],0))*INDEX('PARAMETRI PROIECT'!$B$12:$H$12,1,MATCH(Detalii[[#Headers],[AVOCAT PROPRIETATE INTELECTUALĂ]],Parametri[#Headers],0))*Detalii[[#This Row],[LUCRU EFECTIV]]","v":{"v":0,"d":"0 lei"}},{"$f":"INDEX(Parametri[],MATCH(Detalii[[#This Row],[TIP PROIECT]],Parametri[TIP PROIECT],0),MATCH(Detalii[[#Headers],[AVOCAT FALIMENTE]],Parametri[#Headers],0))*INDEX('PARAMETRI PROIECT'!$B$12:$H$12,1,MATCH(Detalii[[#Headers],[AVOCAT FALIMENTE]],Parametri[#Headers],0))*Detalii[[#This Row],[LUCRU EFECTIV]]","v":{"v":0,"d":"0 lei"}},{"$f":"INDEX(Parametri[],MATCH(Detalii[[#This Row],[TIP PROIECT]],Parametri[TIP PROIECT],0),MATCH(Detalii[[#Headers],[PERSONAL ADMINISTRATIV]],Parametri[#Headers],0))*INDEX('PARAMETRI PROIECT'!$B$12:$H$12,1,MATCH(Detalii[[#Headers],[PERSONAL ADMINISTRATIV]],Parametri[#Headers],0))*Detalii[[#This Row],[LUCRU EFECTIV]]","v":{"v":18750,"d":"18,750 lei"}}]
[null,"Proiectul 4","Cereri de brevete",{"$f":"TODAY()+200","v":"2019-09-06"},{"$f":"TODAY()+230","v":"2019-10-06"},{"$f":"TODAY()+230","v":"2019-10-06"},{"$f":"TODAY()+230","v":"2019-10-06"},150,145,{"$f":"DAYS360(Detalii[[#This Row],[DATA DE ÎNCEPUT ESTIMATĂ]],Detalii[[#This Row],[DATA DE SFÂRȘIT ESTIMATĂ]],FALSE)","v":30},{"$f":"DAYS360(Detalii[[#This Row],[DATA DE ÎNCEPUT EFECTIVĂ]],Detalii[[#This Row],[DATA DE SFÂRȘIT EFECTIVĂ]],FALSE)","v":0},{"$f":"INDEX(Parametri[],MATCH(Detalii[[#This Row],[TIP PROIECT]],Parametri[TIP PROIECT],0),MATCH(Detalii[[#Headers],[PARTENER GENERAL]],Parametri[#Headers],0))*INDEX('PARAMETRI PROIECT'!$B$12:$H$12,1,MATCH(Detalii[[#Headers],[PARTENER GENERAL]],Parametri[#Headers],0))*Detalii[[#This Row],[LUCRU ESTIMAT]]","v":{"v":5250,"d":"5,250 lei"}},{"$f":"INDEX(Parametri[],MATCH(Detalii[[#This Row],[TIP PROIECT]],Parametri[TIP PROIECT],0),MATCH(Detalii[[#Headers],[AVOCAT COMERCIAL]],Parametri[#Headers],0))*INDEX('PARAMETRI PROIECT'!$B$12:$H$12,1,MATCH(Detalii[[#Headers],[AVOCAT COMERCIAL]],Parametri[#Headers],0))*Detalii[[#This Row],[LUCRU ESTIMAT]]","v":{"v":0,"d":"0 lei"}},{"$f":"INDEX(Parametri[],MATCH(Detalii[[#This Row],[TIP PROIECT]],Parametri[TIP PROIECT],0),MATCH(Detalii[[#Headers],[AVOCAT PLEDANT APĂRARE]],Parametri[#Headers],0))*INDEX('PARAMETRI PROIECT'!$B$12:$H$12,1,MATCH(Detalii[[#Headers],[AVOCAT PLEDANT APĂRARE]],Parametri[#Headers],0))*Detalii[[#This Row],[LUCRU ESTIMAT]]","v":{"v":0,"d":"0 lei"}},{"$f":"INDEX(Parametri[],MATCH(Detalii[[#This Row],[TIP PROIECT]],Parametri[TIP PROIECT],0),MATCH(Detalii[[#Headers],[AVOCAT PROPRIETATE INTELECTUALĂ]],Parametri[#Headers],0))*INDEX('PARAMETRI PROIECT'!$B$12:$H$12,1,MATCH(Detalii[[#Headers],[AVOCAT PROPRIETATE INTELECTUALĂ]],Parametri[#Headers],0))*Detalii[[#This Row],[LUCRU ESTIMAT]]","v":{"v":24750,"d":"24,750 lei"}},{"$f":"INDEX(Parametri[],MATCH(Detalii[[#This Row],[TIP PROIECT]],Parametri[TIP PROIECT],0),MATCH(Detalii[[#Headers],[AVOCAT FALIMENTE]],Parametri[#Headers],0))*INDEX('PARAMETRI PROIECT'!$B$12:$H$12,1,MATCH(Detalii[[#Headers],[AVOCAT FALIMENTE]],Parametri[#Headers],0))*Detalii[[#This Row],[LUCRU ESTIMAT]]","v":{"v":0,"d":"0 lei"}},{"$f":"INDEX(Parametri[],MATCH(Detalii[[#This Row],[TIP PROIECT]],Parametri[TIP PROIECT],0),MATCH(Detalii[[#Headers],[PERSONAL ADMINISTRATIV]],Parametri[#Headers],0))*INDEX('PARAMETRI PROIECT'!$B$12:$H$12,1,MATCH(Detalii[[#Headers],[PERSONAL ADMINISTRATIV]],Parametri[#Headers],0))*Detalii[[#This Row],[LUCRU ESTIMAT]]","v":{"v":5625,"d":"5,625 lei"}},{"$f":"INDEX(Parametri[],MATCH(Detalii[[#This Row],[TIP PROIECT]],Parametri[TIP PROIECT],0),MATCH(Detalii[[#Headers],[PARTENER GENERAL]],Parametri[#Headers],0))*INDEX('PARAMETRI PROIECT'!$B$12:$H$12,1,MATCH(Detalii[[#Headers],[PARTENER GENERAL]],Parametri[#Headers],0))*Detalii[[#This Row],[LUCRU EFECTIV]]","v":{"v":5075,"d":"5,075 lei"}},{"$f":"INDEX(Parametri[],MATCH(Detalii[[#This Row],[TIP PROIECT]],Parametri[TIP PROIECT],0),MATCH(Detalii[[#Headers],[AVOCAT COMERCIAL]],Parametri[#Headers],0))*INDEX('PARAMETRI PROIECT'!$B$12:$H$12,1,MATCH(Detalii[[#Headers],[AVOCAT COMERCIAL]],Parametri[#Headers],0))*Detalii[[#This Row],[LUCRU EFECTIV]]","v":{"v":0,"d":"0 lei"}},{"$f":"INDEX(Parametri[],MATCH(Detalii[[#This Row],[TIP PROIECT]],Parametri[TIP PROIECT],0),MATCH(Detalii[[#Headers],[AVOCAT PLEDANT APĂRARE]],Parametri[#Headers],0))*INDEX('PARAMETRI PROIECT'!$B$12:$H$12,1,MATCH(Detalii[[#Headers],[AVOCAT PLEDANT APĂRARE]],Parametri[#Headers],0))*Detalii[[#This Row],[LUCRU EFECTIV]]","v":{"v":0,"d":"0 lei"}},{"$f":"INDEX(Parametri[],MATCH(Detalii[[#This Row],[TIP PROIECT]],Parametri[TIP PROIECT],0),MATCH(Detalii[[#Headers],[AVOCAT PROPRIETATE INTELECTUALĂ]],Parametri[#Headers],0))*INDEX('PARAMETRI PROIECT'!$B$12:$H$12,1,MATCH(Detalii[[#Headers],[AVOCAT PROPRIETATE INTELECTUALĂ]],Parametri[#Headers],0))*Detalii[[#This Row],[LUCRU EFECTIV]]","v":{"v":23925,"d":"23,925 lei"}},{"$f":"INDEX(Parametri[],MATCH(Detalii[[#This Row],[TIP PROIECT]],Parametri[TIP PROIECT],0),MATCH(Detalii[[#Headers],[AVOCAT FALIMENTE]],Parametri[#Headers],0))*INDEX('PARAMETRI PROIECT'!$B$12:$H$12,1,MATCH(Detalii[[#Headers],[AVOCAT FALIMENTE]],Parametri[#Headers],0))*Detalii[[#This Row],[LUCRU EFECTIV]]","v":{"v":0,"d":"0 lei"}},{"$f":"INDEX(Parametri[],MATCH(Detalii[[#This Row],[TIP PROIECT]],Parametri[TIP PROIECT],0),MATCH(Detalii[[#Headers],[PERSONAL ADMINISTRATIV]],Parametri[#Headers],0))*INDEX('PARAMETRI PROIECT'!$B$12:$H$12,1,MATCH(Detalii[[#Headers],[PERSONAL ADMINISTRATIV]],Parametri[#Headers],0))*Detalii[[#This Row],[LUCRU EFECTIV]]","v":{"v":5437.5,"d":"5,438 lei"}}]
[null,"Proiectul 5","Procese intentate de angajați",{"$f":"TODAY()+220","v":"2019-09-26"},{"$f":"TODAY()+250","v":"2019-10-26"},{"$f":"TODAY()+230","v":"2019-10-06"},{"$f":"TODAY()+259","v":"2019-11-04"},250,255,{"$f":"DAYS360(Detalii[[#This Row],[DATA DE ÎNCEPUT ESTIMATĂ]],Detalii[[#This Row],[DATA DE SFÂRȘIT ESTIMATĂ]],FALSE)","v":30},{"$f":"DAYS360(Detalii[[#This Row],[DATA DE ÎNCEPUT EFECTIVĂ]],Detalii[[#This Row],[DATA DE SFÂRȘIT EFECTIVĂ]],FALSE)","v":28},{"$f":"INDEX(Parametri[],MATCH(Detalii[[#This Row],[TIP PROIECT]],Parametri[TIP PROIECT],0),MATCH(Detalii[[#Headers],[PARTENER GENERAL]],Parametri[#Headers],0))*INDEX('PARAMETRI PROIECT'!$B$12:$H$12,1,MATCH(Detalii[[#Headers],[PARTENER GENERAL]],Parametri[#Headers],0))*Detalii[[#This Row],[LUCRU ESTIMAT]]","v":{"v":17500,"d":"17,500 lei"}},{"$f":"INDEX(Parametri[],MATCH(Detalii[[#This Row],[TIP PROIECT]],Parametri[TIP PROIECT],0),MATCH(Detalii[[#Headers],[AVOCAT COMERCIAL]],Parametri[#Headers],0))*INDEX('PARAMETRI PROIECT'!$B$12:$H$12,1,MATCH(Detalii[[#Headers],[AVOCAT COMERCIAL]],Parametri[#Headers],0))*Detalii[[#This Row],[LUCRU ESTIMAT]]","v":{"v":6250,"d":"6,250 lei"}},{"$f":"INDEX(Parametri[],MATCH(Detalii[[#This Row],[TIP PROIECT]],Parametri[TIP PROIECT],0),MATCH(Detalii[[#Headers],[AVOCAT PLEDANT APĂRARE]],Parametri[#Headers],0))*INDEX('PARAMETRI PROIECT'!$B$12:$H$12,1,MATCH(Detalii[[#Headers],[AVOCAT PLEDANT APĂRARE]],Parametri[#Headers],0))*Detalii[[#This Row],[LUCRU ESTIMAT]]","v":{"v":30000,"d":"30,000 lei"}},{"$f":"INDEX(Parametri[],MATCH(Detalii[[#This Row],[TIP PROIECT]],Parametri[TIP PROIECT],0),MATCH(Detalii[[#Headers],[AVOCAT PROPRIETATE INTELECTUALĂ]],Parametri[#Headers],0))*INDEX('PARAMETRI PROIECT'!$B$12:$H$12,1,MATCH(Detalii[[#Headers],[AVOCAT PROPRIETATE INTELECTUALĂ]],Parametri[#Headers],0))*Detalii[[#This Row],[LUCRU ESTIMAT]]","v":{"v":0,"d":"0 lei"}},{"$f":"INDEX(Parametri[],MATCH(Detalii[[#This Row],[TIP PROIECT]],Parametri[TIP PROIECT],0),MATCH(Detalii[[#Headers],[AVOCAT FALIMENTE]],Parametri[#Headers],0))*INDEX('PARAMETRI PROIECT'!$B$12:$H$12,1,MATCH(Detalii[[#Headers],[AVOCAT FALIMENTE]],Parametri[#Headers],0))*Detalii[[#This Row],[LUCRU ESTIMAT]]","v":{"v":0,"d":"0 lei"}},{"$f":"INDEX(Parametri[],MATCH(Detalii[[#This Row],[TIP PROIECT]],Parametri[TIP PROIECT],0),MATCH(Detalii[[#Headers],[PERSONAL ADMINISTRATIV]],Parametri[#Headers],0))*INDEX('PARAMETRI PROIECT'!$B$12:$H$12,1,MATCH(Detalii[[#Headers],[PERSONAL ADMINISTRATIV]],Parametri[#Headers],0))*Detalii[[#This Row],[LUCRU ESTIMAT]]","v":{"v":9375,"d":"9,375 lei"}},{"$f":"INDEX(Parametri[],MATCH(Detalii[[#This Row],[TIP PROIECT]],Parametri[TIP PROIECT],0),MATCH(Detalii[[#Headers],[PARTENER GENERAL]],Parametri[#Headers],0))*INDEX('PARAMETRI PROIECT'!$B$12:$H$12,1,MATCH(Detalii[[#Headers],[PARTENER GENERAL]],Parametri[#Headers],0))*Detalii[[#This Row],[LUCRU EFECTIV]]","v":{"v":17850,"d":"17,850 lei"}},{"$f":"INDEX(Parametri[],MATCH(Detalii[[#This Row],[TIP PROIECT]],Parametri[TIP PROIECT],0),MATCH(Detalii[[#Headers],[AVOCAT COMERCIAL]],Parametri[#Headers],0))*INDEX('PARAMETRI PROIECT'!$B$12:$H$12,1,MATCH(Detalii[[#Headers],[AVOCAT COMERCIAL]],Parametri[#Headers],0))*Detalii[[#This Row],[LUCRU EFECTIV]]","v":{"v":6375,"d":"6,375 lei"}},{"$f":"INDEX(Parametri[],MATCH(Detalii[[#This Row],[TIP PROIECT]],Parametri[TIP PROIECT],0),MATCH(Detalii[[#Headers],[AVOCAT PLEDANT APĂRARE]],Parametri[#Headers],0))*INDEX('PARAMETRI PROIECT'!$B$12:$H$12,1,MATCH(Detalii[[#Headers],[AVOCAT PLEDANT APĂRARE]],Parametri[#Headers],0))*Detalii[[#This Row],[LUCRU EFECTIV]]","v":{"v":30600,"d":"30,600 lei"}},{"$f":"INDEX(Parametri[],MATCH(Detalii[[#This Row],[TIP PROIECT]],Parametri[TIP PROIECT],0),MATCH(Detalii[[#Headers],[AVOCAT PROPRIETATE INTELECTUALĂ]],Parametri[#Headers],0))*INDEX('PARAMETRI PROIECT'!$B$12:$H$12,1,MATCH(Detalii[[#Headers],[AVOCAT PROPRIETATE INTELECTUALĂ]],Parametri[#Headers],0))*Detalii[[#This Row],[LUCRU EFECTIV]]","v":{"v":0,"d":"0 lei"}},{"$f":"INDEX(Parametri[],MATCH(Detalii[[#This Row],[TIP PROIECT]],Parametri[TIP PROIECT],0),MATCH(Detalii[[#Headers],[AVOCAT FALIMENTE]],Parametri[#Headers],0))*INDEX('PARAMETRI PROIECT'!$B$12:$H$12,1,MATCH(Detalii[[#Headers],[AVOCAT FALIMENTE]],Parametri[#Headers],0))*Detalii[[#This Row],[LUCRU EFECTIV]]","v":{"v":0,"d":"0 lei"}},{"$f":"INDEX(Parametri[],MATCH(Detalii[[#This Row],[TIP PROIECT]],Parametri[TIP PROIECT],0),MATCH(Detalii[[#Headers],[PERSONAL ADMINISTRATIV]],Parametri[#Headers],0))*INDEX('PARAMETRI PROIECT'!$B$12:$H$12,1,MATCH(Detalii[[#Headers],[PERSONAL ADMINISTRATIV]],Parametri[#Headers],0))*Detalii[[#This Row],[LUCRU EFECTIV]]","v":{"v":9562.5,"d":"9,563 lei"}}]
[null,"TOTAL",{"$nulls":5},{"$f":"SUBTOTAL(109,Detalii[LUCRU ESTIMAT])","v":1500},{"$f":"SUBTOTAL(109,Detalii[LUCRU EFECTIV])","v":1510},{"$f":"SUBTOTAL(109,Detalii[DURATA ESTIMATĂ])","v":190},{"$f":"SUBTOTAL(109,Detalii[DURATA EFECTIVĂ])","v":169}]

{"sheet":"TOTALURI PROIECT","index":3,"n_rows":11,"n_cols":16,"rows_kept":11,"merged":[[3,2,3,7],[3,8,3,13],[3,15,14,19]]}
["Obțineți Totaluri proiect în această foaie de lucru. Numele firmei se actualizează automat în celula din dreapta. În celulele din această coloană se află instrucțiuni utile. Apăsați săgeata în jos pentru a începe.",{"$f":"'PARAMETRI PROIECT'!B1","v":"Numele firmei"}]
["Titlul acestei foi de lucru se află în celula de la dreapta.",{"$f":"'PARAMETRI PROIECT'!B2","v":"Planificarea proiectelor pentru firme de avocatură"}]
["Mesajul privind confidențialitatea se află în celula din dreapta.",{"$f":"'PARAMETRI PROIECT'!B3","v":"Numele firmei confidențial"}]
["Eticheta Estimat este în celula C4, eticheta Real în celula I4 și informațiile în celula P4.",null,"ESTIMAT",{"$nulls":5},"REAL",{"$nulls":6},"INFORMAȚII: \nAcest raport PivotTable nu se va reîmprospăta automat.  Pentru a-l reîmprospăta, selectați-l (orice celulă din raport), apoi selectați Reîmprospătare în fila din panglică INSTRUMENTE PIVOTTABLE | ANALIZĂ.  Sau apăsați SHIFT + F10 selectând tabelul PivotTable și apoi Reîmprospătare."]
["Tabelul PivotTable care începe de la celula din dreapta se actualizează automat.","NUMELE PROIECTULUI","PARTENER GENERAL ","AFACERI ","AVOCAT PLEDANT APĂRARE ","PROPRIETATE INTELECTUALĂ ","FALIMENT ","PERSONAL ADMINISTRATIV ","PARTENER GENERAL  ","AFACERI  ","AVOCAT PLEDANT APĂRARE  ","FALIMENT  ","PROPRIETATE INTELECTUALĂ  ","PERSONAL ADMINISTRATIV  "]
[null,"Proiectul 1",{"v":7000,"d":"7,000.00 lei"},{"v":20000,"d":"20,000.00 lei"},{"v":0,"d":"0.00 lei"},{"v":0,"d":"0.00 lei"},{"v":0,"d":"0.00 lei"},{"v":12500,"d":"12,500.00 lei"},{"v":7700,"d":"7,700.00 lei"},{"v":22000,"d":"22,000.00 lei"},{"v":0,"d":"0.00 lei"},{"v":0,"d":"0.00 lei"},{"v":0,"d":"0.00 lei"},{"v":13750,"d":"13,750.00 lei"}]
[null,"Proiectul 2",{"v":14000,"d":"14,000.00 lei"},{"v":40000,"d":"40,000.00 lei"},{"v":0,"d":"0.00 lei"},{"v":11000,"d":"11,000.00 lei"},{"v":0,"d":"0.00 lei"},{"v":20000,"d":"20,000.00 lei"},{"v":13650,"d":"13,650.00 lei"},{"v":39000,"d":"39,000.00 lei"},{"v":0,"d":"0.00 lei"},{"v":10725,"d":"10,725.00 lei"},{"v":0,"d":"0.00 lei"},{"v":19500,"d":"19,500.00 lei"}]
[null,"Proiectul 3",{"v":35000,"d":"35,000.00 lei"},{"v":0,"d":"0.00 lei"},{"v":75000,"d":"75,000.00 lei"},{"v":0,"d":"0.00 lei"},{"v":0,"d":"0.00 lei"},{"v":18750,"d":"18,750.00 lei"},{"v":35000,"d":"35,000.00 lei"},{"v":0,"d":"0.00 lei"},{"v":75000,"d":"75,000.00 lei"},{"v":0,"d":"0.00 lei"},{"v":0,"d":"0.00 lei"},{"v":18750,"d":"18,750.00 lei"}]
[null,"Proiectul 4",{"v":5250,"d":"5,250.00 lei"},{"v":0,"d":"0.00 lei"},{"v":0,"d":"0.00 lei"},{"v":24750,"d":"24,750.00 lei"},{"v":0,"d":"0.00 lei"},{"v":5625,"d":"5,625.00 lei"},{"v":5075,"d":"5,075.00 lei"},{"v":0,"d":"0.00 lei"},{"v":0,"d":"0.00 lei"},{"v":23925,"d":"23,925.00 lei"},{"v":0,"d":"0.00 lei"},{"v":5437.5,"d":"5,437.50 lei"}]
[null,"Proiectul 5",{"v":17500,"d":"17,500.00 lei"},{"v":6250,"d":"6,250.00 lei"},{"v":30000,"d":"30,000.00 lei"},{"v":0,"d":"0.00 lei"},{"v":0,"d":"0.00 lei"},{"v":9375,"d":"9,375.00 lei"},{"v":17850,"d":"17,850.00 lei"},{"v":6375,"d":"6,375.00 lei"},{"v":30600,"d":"30,600.00 lei"},{"v":0,"d":"0.00 lei"},{"v":0,"d":"0.00 lei"},{"v":9562.5,"d":"9,562.50 lei"}]
[null,"Total general",{"v":78750,"d":"78,750.00 lei"},{"v":66250,"d":"66,250.00 lei"},{"v":105000,"d":"105,000.00 lei"},{"v":35750,"d":"35,750.00 lei"},{"v":0,"d":"0.00 lei"},{"v":66250,"d":"66,250.00 lei"},{"v":79275,"d":"79,275.00 lei"},{"v":67375,"d":"67,375.00 lei"},{"v":105600,"d":"105,600.00 lei"},{"v":34650,"d":"34,650.00 lei"},{"v":0,"d":"0.00 lei"},{"v":67000,"d":"67,000.00 lei"}]